fUSD/lending_fUSD_20260318
["ID","MTS","AMOUNT","RATE_DAILY","PERIOD"]
[408541403,1773869444844,-150.0,0.00014633,2]
[408541404,1773869444854,-150.0,0.00014633,2]
[408541405,1773869444863,-157.29337984,0.00014633,2]
[408541406,1773869444872,-473.0,0.00014633,2]
[408541407,1773869444882,-725.0,0.00014633,2]
[408541408,1773869444891,-500.0,0.00014633,2]
[408541409,1773869444901,-500.0,0.00014633,2]
[408541410,1773869444911,-500.0,0.00014633,2]
[408541411,1773869444920,-500.0,0.00014633,2]
[408541412,1773869444929,-500.0,0.00014633,2]
[408541413,1773869444938,-500.0,0.00014633,2]
[408541414,1773869444947,-500.0,0.00014633,2]
[408541415,1773869444957,-500.0,0.00014633,2]
[408541416,1773869444966,-725.0,0.00014633,2]
[408541417,1773869444976,-500.0,0.00014633,2]
[408541418,1773869444986,-355.85817096,0.00014633,2]
[408541419,1773869444997,-473.0,0.00014633,2]
[408541420,1773869445006,-725.0,0.00014633,2]
[408541421,1773869445015,-196.64867336,0.00014633,2]
[408541422,1773869445025,-490.90224711,0.00014633,2]
[408541423,1773869445034,-819.0,0.00014633,2]
[408541424,1773869445043,-819.0,0.00014633,2]
[408541425,1773869445052,-819.0,0.00014633,2]
[408541426,1773869445062,-819.0,0.00014633,2]
[408541427,1773869445071,-819.0,0.00014633,2]
[408541428,1773869445080,-819.0,0.00014633,2]
[408541429,1773869445089,-819.0,0.00014633,2]
[408541430,1773869445098,-819.0,0.00014633,2]
[408541431,1773869445108,-819.0,0.00014633,2]
[408541432,1773869445117,-819.0,0.00014633,2]
[408541433,1773869445127,-819.0,0.00014633,2]
[408541434,1773869445136,-725.0,0.00014633,2]
[408541435,1773869445146,-819.0,0.00014633,2]
[408541436,1773869445155,-819.0,0.00014633,2]
[408541437,1773869445165,-819.0,0.00014633,2]
[408541438,1773869445174,-819.0,0.00014633,2]
[408541439,1773869445183,-819.0,0.00014633,2]
[408541440,1773869445192,-819.0,0.00014633,2]
[408541441,1773869445201,-819.0,0.00014633,2]
[408541442,1773869445210,-733.56641825,0.00014633,2]
[408541443,1773869445220,-819.0,0.00014633,2]
[408541444,1773869445229,-819.0,0.00014633,2]
[408541445,1773869445238,-819.0,0.00014633,2]
[408541446,1773869445247,-819.0,0.00014633,2]
[408541447,1773869445257,-819.0,0.00014633,2]
[408541448,1773869445266,-826.14178161,0.00014633,2]
[408541449,1773869445281,-150.0,0.00014633,2]
[408541450,1773869445292,-150.0,0.00014633,2]
[408541451,1773869445302,-150.0,0.00014633,2]
[408541452,1773869445312,-150.0,0.00014633,2]
[408541453,1773869445322,-150.0,0.00014633,2]
[408541454,1773869445331,-157.31009699,0.00014633,2]
[408541455,1773869445341,-446.0,0.00014633,2]
[408541456,1773869445351,-446.0,0.00014633,2]
[408541457,1773869445361,-446.0,0.00014633,2]
[408541458,1773869445370,-446.0,0.00014633,2]
[408541459,1773869445380,-446.0,0.00014633,2]
[408541460,1773869445390,-446.0,0.00014633,2]
[408541461,1773869445399,-446.0,0.00014633,2]
[408541462,1773869445409,-446.0,0.00014633,2]
[408541463,1773869445420,-446.0,0.00014633,2]
[408541464,1773869445429,-446.0,0.00014633,2]
[408541465,1773869445440,-446.0,0.00014633,2]
[408541466,1773869445449,-446.0,0.00014633,2]
[408541467,1773869445459,-446.0,0.00014633,2]
[408541468,1773869445469,-446.0,0.00014633,2]
[408541469,1773869445484,-500.0,0.00014633,2]
[408541470,1773869445494,-446.0,0.00014633,2]
[408541471,1773869445504,-500.0,0.00014633,2]
[408541472,1773869445514,-500.0,0.00014633,2]
[408541473,1773869445725,-446.0,0.00014633,2]
[408541474,1773869445736,-500.0,0.00014633,2]
[408541475,1773869445746,-500.0,0.00014633,2]
[408541476,1773869445756,-500.0,0.00014633,2]
[408541477,1773869445765,-446.0,0.00014633,2]
[408541478,1773869445778,-500.0,0.00014633,2]
[408541479,1773869445788,-500.0,0.00014633,2]
[408541480,1773869445798,-500.0,0.00014633,2]
[408541481,1773869445807,-1336.0,0.00014633,2]
[408541482,1773869445816,-500.0,0.00014633,2]
[408541483,1773869445825,-1336.0,0.00014633,2]
[408541484,1773869445835,-446.0,0.00014633,2]
[408541485,1773869445845,-500.0,0.00014633,2]
[408541486,1773869445855,-1336.0,0.00014633,2]
[408541487,1773869445864,-500.0,0.00014633,2]
[408541488,1773869445874,-1336.0,0.00014633,2]
[408541489,1773869445883,-257.02458902,0.00014633,2]
[408541490,1773869445892,-1336.0,0.00014633,2]
[408541491,1773869445901,-1336.0,0.00014633,2]
[408541492,1773869445910,-1336.0,0.00014633,2]
[408541493,1773869445921,-1336.0,0.00014633,2]
[408541494,1773869445932,-446.0,0.00014633,2]
[408541495,1773869445942,-150.0,0.00014633,2]
[408541496,1773869445951,-1336.0,0.00014633,2]
[408541497,1773869445960,-1336.0,0.00014633,2]
[408541498,1773869445973,-1336.0,0.00014633,2]
[408541499,1773869445982,-1336.0,0.00014633,2]
[408541500,1773869445992,-1336.0,0.00014633,2]
[408541501,1773869446003,-446.0,0.00014633,2]
[408541502,1773869446012,-1336.0,0.00014633,2]
[408541503,1773869446021,-1336.0,0.00014633,2]
[408541504,1773869446030,-1336.0,0.00014633,2]
[408541505,1773869446039,-1336.0,0.00014633,2]
[408541506,1773869446048,-500.0,0.00014633,2]
[408541507,1773869446058,-446.0,0.00014633,2]
[408541508,1773869446067,-500.0,0.00014633,2]
[408541509,1773869446076,-500.0,0.00014633,2]
[408541510,1773869446085,-500.0,0.00014633,2]
[408541511,1773869446094,-1336.0,0.00014633,2]
[408541512,1773869446103,-500.0,0.00014633,2]
[408541513,1773869446112,-500.0,0.00014633,2]
[408541514,1773869446121,-296.91714661,0.00014633,2]
[408541515,1773869446130,-1336.0,0.00014633,2]
[408541516,1773869446139,-446.0,0.00014633,2]
[408541517,1773869446148,-1336.0,0.00014633,2]
[408541518,1773869446157,-446.0,0.00014633,2]
[408541519,1773869446166,-1336.0,0.00014633,2]
[408541520,1773869446177,-1336.0,0.00014633,2]
[408541521,1773869446186,-452.0,0.00014633,2]
[408541522,1773869446195,-1336.0,0.00014633,2]
[408541523,1773869446204,-1347.0,0.00014633,2]
[408541524,1773869446213,-500.0,0.00014633,2]
[408541525,1773869446222,-500.0,0.00014633,2]
[408541526,1773869446231,-500.0,0.00014633,2]
[408541527,1773869446240,-500.0,0.00014633,2]
[408541528,1773869446249,-500.0,0.00014633,2]
[408541529,1773869446258,-500.0,0.00014633,2]
[408541530,1773869446268,-500.0,0.00014633,2]
[408541531,1773869446277,-500.0,0.00014633,2]
[408541532,1773869446286,-500.0,0.00014633,2]
[408541533,1773869446295,-500.0,0.00014633,2]
[408541534,1773869446305,-500.0,0.00014633,2]
[408541535,1773869446313,-500.0,0.00014633,2]
[408541536,1773869446322,-500.0,0.00014633,2]
[408541537,1773869446331,-500.0,0.00014633,2]
[408541538,1773869446340,-500.0,0.00014633,2]
[408541539,1773869446348,-500.0,0.00014633,2]
[408541540,1773869446357,-500.0,0.00014633,2]
[408541541,1773869446366,-500.0,0.00014633,2]
[408541542,1773869446377,-500.0,0.00014633,2]
[408541543,1773869446387,-500.0,0.00014633,2]
[408541544,1773869446396,-217.82344872,0.00014633,2]
[408541545,1773869446404,-500.0,0.00014633,2]
[408541546,1773869446413,-500.0,0.00014633,2]
[408541547,1773869446422,-500.0,0.00014633,2]
[408541548,1773869446431,-500.0,0.00014633,2]
[408541549,1773869446440,-500.0,0.00014633,2]
[408541550,1773869446449,-500.0,0.00014633,2]
[408541551,1773869446458,-500.0,0.00014633,2]
[408541552,1773869446467,-150.0,0.00014633,2]
[408541554,1773869446476,-500.0,0.00014633,2]
[408541556,1773869446486,-500.0,0.00014633,2]
[408541557,1773869446495,-150.0,0.00014633,2]
[408541558,1773869446504,-500.0,0.00014633,2]
[408541559,1773869446513,-500.0,0.00014633,2]
[408541560,1773869446522,-150.92321602,0.00014633,2]
[408541562,1773869446531,-500.0,0.00014633,2]
[408541563,1773869446540,-500.0,0.00014633,2]
[408541565,1773869446549,-500.0,0.00014633,2]
[408541567,1773869446558,-404.16641297,0.00014633,2]
[408541568,1773869446567,-500.0,0.00014633,2]
[408541569,1773869446576,-500.0,0.00014633,2]
[408541570,1773869446587,-500.0,0.00014633,2]
[408541572,1773869446596,-500.0,0.00014633,2]
[408541573,1773869446606,-500.0,0.00014633,2]
[408541574,1773869446616,-500.0,0.00014633,2]
[408541575,1773869446627,-500.0,0.00014633,2]
[408541576,1773869446636,-500.0,0.00014633,2]
[408541577,1773869446646,-500.0,0.00014633,2]
[408541578,1773869446655,-215.04734104,0.00014633,2]
[408541579,1773869446665,-242.35965246,0.00014633,2]
[408541580,1773869446675,-500.0,0.00014633,2]
[408541581,1773869446686,-500.0,0.00014633,2]
[408541582,1773869446696,-450.0,0.00014633,2]
[408541583,1773869446707,-500.0,0.00014633,2]
[408541584,1773869446716,-500.0,0.00014633,2]
[408541585,1773869446725,-500.0,0.00014633,2]
[408541586,1773869446735,-500.0,0.00014633,2]
[408541587,1773869446756,-500.0,0.00014633,2]
[408541588,1773869446767,-500.0,0.00014633,2]
[408541589,1773869446777,-500.0,0.00014633,2]
[408541590,1773869446788,-150.0,0.00014633,2]
[408541591,1773869446799,-500.0,0.00014633,2]
[408541592,1773869446811,-500.0,0.00014633,2]
[408541593,1773869446820,-500.0,0.00014633,2]
[408541594,1773869446829,-150.0,0.00014633,2]
[408541595,1773869446839,-196.3000351,0.00014633,2]
[408541596,1773869446848,-500.0,0.00014633,2]
[408541597,1773869446858,-500.0,0.00014633,2]
[408541598,1773869446867,-164.48819098,0.00014633,2]
[408541599,1773869446878,-500.0,0.00014633,2]
[408541600,1773869446887,-500.0,0.00014633,2]
[408541601,1773869446896,-216.08610835,0.00014633,2]
[408541602,1773869446906,-500.0,0.00014633,2]
[408541603,1773869446916,-500.0,0.00014633,2]
[408541604,1773869446925,-500.0,0.00014633,2]
[408541605,1773869446934,-500.0,0.00014633,2]
[408541606,1773869446944,-500.0,0.00014633,2]
[408541607,1773869446953,-500.0,0.00014633,2]
[408541608,1773869446963,-500.0,0.00014633,2]
[408541609,1773869446973,-502.91519512,0.00014633,2]
[408541610,1773869446983,-150.0,0.00014633,2]
[408541611,1773869446997,-500.0,0.00014633,2]
[408541612,1773869447007,-500.0,0.00014633,2]
[408541613,1773869447017,-447.02196255,0.00014633,2]
[408541614,1773869447028,-150.0,0.00014633,2]
[408541615,1773869447038,-500.0,0.00014633,2]
[408541616,1773869447048,-500.0,0.00014633,2]
[408541617,1773869447060,-500.0,0.00014633,2]
[408541618,1773869447071,-500.0,0.00014633,2]
[408541619,1773869447081,-500.0,0.00014633,2]
[408541620,1773869447091,-150.0,0.00014633,2]
[408541621,1773869447100,-443.58663607,0.00014633,2]
[408541622,1773869447110,-500.0,0.00014633,2]
[408541623,1773869447119,-150.0,0.00014633,2]
[408541624,1773869447129,-338.75555333,0.00014633,2]
[408541625,1773869447138,-500.0,0.00014633,2]
[408541626,1773869447149,-150.0,0.00014633,2]
[408541627,1773869447159,-500.0,0.00014633,2]
[408541628,1773869447168,-181.46034968,0.00014633,2]
[408541629,1773869447178,-500.0,0.00014633,2]
[408541630,1773869447187,-617.15786941,0.00014633,2]
[408541631,1773869447197,-500.0,0.00014633,2]
[408541632,1773869447206,-500.0,0.00014633,2]
[408541633,1773869447215,-500.0,0.00014633,2]
[408541634,1773869447225,-176.15270069,0.00014633,2]
[408541635,1773869447234,-150.0,0.00014633,2]
[408541636,1773869447244,-150.0,0.00014633,2]
[408541637,1773869447254,-178.6671581,0.00014633,2]
[408541638,1773869447264,-175.95821177,0.00014633,2]
[408541639,1773869447273,-500.0,0.00014633,2]
[408541640,1773869447282,-500.0,0.00014633,2]
[408541641,1773869447297,-500.0,0.00014633,2]
[408541642,1773869447307,-500.0,0.00014633,2]
[408541643,1773869447317,-500.0,0.00014633,2]
[408541644,1773869447326,-500.0,0.00014633,2]
[408541645,1773869447339,-500.0,0.00014633,2]
[408541646,1773869447350,-500.0,0.00014633,2]
[408541647,1773869447359,-500.0,0.00014633,2]
[408541648,1773869447369,-500.0,0.00014633,2]
[408541649,1773869447378,-500.0,0.00014633,2]
[408541650,1773869447388,-500.0,0.00014633,2]
[408541651,1773869447397,-500.0,0.00014633,2]
[408541652,1773869447406,-500.0,0.00014633,2]
[408541653,1773869447416,-500.0,0.00014633,2]
[408541654,1773869447425,-500.0,0.00014633,2]
[408541655,1773869447435,-500.0,0.00014633,2]
[408541656,1773869447444,-430.84952718,0.00014633,2]
[408541657,1773869447454,-500.0,0.00014633,2]
[408541658,1773869447463,-558.0,0.00014633,2]
[408541659,1773869447473,-150.0,0.00014633,2]
[408541660,1773869447484,-500.0,0.00014633,2]
[408541661,1773869447494,-558.0,0.00014633,2]
[408541662,1773869447504,-500.0,0.00014633,2]
[408541663,1773869447515,-558.0,0.00014633,2]
[408541664,1773869447525,-500.0,0.00014633,2]
[408541665,1773869447537,-558.0,0.00014633,2]
[408541666,1773869447547,-500.0,0.00014633,2]
[408541667,1773869447557,-558.0,0.00014633,2]
[408541668,1773869447567,-500.0,0.00014633,2]
[408541669,1773869447576,-558.0,0.00014633,2]
[408541670,1773869447586,-500.0,0.00014633,2]
[408541671,1773869447595,-558.0,0.00014633,2]
[408541672,1773869447604,-558.0,0.00014633,2]
[408541673,1773869447613,-500.0,0.00014633,2]
[408541674,1773869447622,-558.0,0.00014633,2]
[408541675,1773869447631,-558.0,0.00014633,2]
[408541676,1773869447640,-558.0,0.00014633,2]
[408541677,1773869447650,-558.0,0.00014633,2]
[408541678,1773869447659,-558.0,0.00014633,2]
[408541679,1773869447668,-350.0,0.00014633,2]
[408541680,1773869447678,-558.0,0.00014633,2]
[408541681,1773869447687,-558.0,0.00014633,2]
[408541682,1773869447696,-558.0,0.00014633,2]
[408541683,1773869447705,-558.0,0.00014633,2]
[408541684,1773869447714,-150.0,0.00014633,2]
[408541685,1773869447724,-558.0,0.00014633,2]
[408541686,1773869447739,-558.0,0.00014633,2]
[408541687,1773869447749,-202.15016787,0.00014633,2]
[408541688,1773869447758,-558.0,0.00014633,2]
[408541689,1773869447767,-558.0,0.00014633,2]
[408541690,1773869447776,-558.0,0.00014633,2]
[408541691,1773869447785,-558.0,0.00014633,2]
[408541692,1773869447795,-559.01723179,0.00014633,2]
[408541693,1773869447804,-151.0,0.00014634,2]
[408541694,1773869447813,-20414.96798754,0.00014657,2]
[408541695,1773869447823,-901.1,0.00014671,2]
[408541696,1773869447832,-500.0,0.000147,2]
[408541697,1773869447841,-500.0,0.000147,2]
[408541698,1773869447854,-500.0,0.000147,2]
[408541699,1773869447864,-151.0,0.000147,2]
[408541700,1773869447873,-202.804032,0.000147,2]
[408541701,1773869447882,-915.001212,0.000147,2]
[408541702,1773869447892,-915.001212,0.000147,2]
[408541703,1773869447901,-915.001212,0.000147,2]
[408541704,1773869447910,-915.001212,0.000147,2]
[408541705,1773869447919,-151.0,0.000147,2]
[408541706,1773869447928,-151.0,0.000147,2]
[408541707,1773869447938,-151.0,0.000147,2]
[408541708,1773869447947,-151.0,0.000147,2]
[408541709,1773869447956,-200.0,0.00014771,2]
[408541710,1773869447966,-500.0,0.00014825,2]
[408541711,1773869447975,-303.14374679,0.00014825,2]
[408541712,1773869447984,-500.0,0.00014825,2]
[408541713,1773869447997,-500.0,0.00014825,2]
[408541714,1773869448006,-517.7204554,0.00014825,2]
[408541715,1773869448016,-159.10669946,0.00014825,2]
[408541716,1773869448027,-316.97510856,0.00014846,2]
[408541717,1773869448038,-500.0,0.00014856,2]
[408541718,1773869448047,-578.22850225,0.00014857,2]
[408541719,1773869448057,-176.033003,0.0001487,7]
[408541720,1773869448068,-500.0,0.00014895,2]
[408541721,1773869448079,-500.0,0.00014895,2]
[408541722,1773869448090,-500.0,0.00014895,2]
[408541723,1773869448099,-500.0,0.00014895,2]
[408541724,1773869448111,-163.19287474,0.00014895,2]
[408541725,1773869448121,-73953.68095213,0.000149,2]
[408541726,1773869448130,-151.0,0.000149,2]
[408541727,1773869448140,-221.592816,0.000149,2]
[408541728,1773869448151,-3900.0,0.000149,5]
[408541729,1773869448161,-151.0,0.000149,2]
[408541730,1773869448171,-151.0,0.000149,2]
[408541731,1773869448180,-160.236376,0.000149,2]
[408541732,1773869448190,-164.40138988,0.000149,2]
[408541733,1773869448199,-500.0,0.000149,2]
[408541734,1773869448208,-20414.96798754,0.00014905,2]
[408541735,1773869448217,-500.0,0.00014907,2]
[408541736,1773869448231,-382.43871643,0.00014912,2]
[408541737,1773869448240,-500.0,0.00014912,2]
[408541738,1773869448250,-336.94661194,0.00014912,2]
[408541739,1773869448259,-502.73508484,0.00014912,2]
[408541740,1773869448269,-500.0,0.00014912,2]
[408541741,1773869448279,-500.0,0.00014912,2]
[408541742,1773869448289,-500.0,0.00014912,2]
[408541743,1773869448298,-187.47382393,0.00014912,2]
[408541744,1773869448307,-1600.0,0.00014937,2]
[408541745,1773869448317,-501.78785805,0.00014968,2]
[408541746,1773869448326,-1500.0,0.00014968,2]
[408541747,1773869448335,-1500.0,0.00014968,2]
[408541748,1773869448344,-1500.0,0.00014968,2]
[408541749,1773869448354,-1500.0,0.00014968,2]
[408541750,1773869448363,-250.0,0.00015,2]
[408541751,1773869448372,-2062.81395263,0.00015,2]
[408541752,1773869448382,-8030.60240922,0.00015,2]
[408541753,1773869448392,-1000.0,0.00015051,2]
[408541754,1773869448401,-1000.0,0.00015051,2]
[408541755,1773869448411,-500.0,0.00015092,2]
[408541756,1773869448420,-500.0,0.00015092,2]
[408541757,1773869448429,-500.0,0.00015092,2]
[408541758,1773869448439,-500.0,0.00015092,2]
[408541759,1773869448448,-210.44909634,0.00015092,2]
[408541760,1773869448458,-161.75571014,0.00015092,2]
[408541761,1773869448467,-500.0,0.00015092,2]
[408541762,1773869448477,-500.0,0.00015092,2]
[408541763,1773869448486,-500.38785834,0.00015092,2]
[408541764,1773869448496,-500.0,0.0001513,2]
[408541765,1773869448505,-20414.96798754,0.00015154,2]
[408541766,1773869448515,-401.96832496,0.00015173,2]
[408541767,1773869448524,-500.0,0.00015173,2]
[408541768,1773869448534,-500.0,0.00015173,2]
[408541769,1773869448543,-177.88795057,0.00015173,2]
[408541770,1773869448552,-500.0,0.00015173,2]
[408541771,1773869448561,-526.34198136,0.00015173,2]
[408541772,1773869448570,-151.0,0.00015174,2]
[408541773,1773869448579,-500.0,0.00015174,2]
[408541774,1773869448589,-200.58610052,0.00015174,2]
[408541775,1773869448598,-250.0,0.00015174,2]
[408541776,1773869448607,-500.0,0.00015174,2]
[408541777,1773869448617,-500.0,0.00015174,2]
[408541778,1773869448627,-500.0,0.00015174,2]
[408541779,1773869448636,-500.0,0.00015174,2]
[408541780,1773869448645,-500.0,0.00015174,2]
[408541781,1773869448655,-500.0,0.00015174,2]
[408541782,1773869448664,-572.04569005,0.00015174,2]
[408541783,1773869448674,-500.0,0.00015174,2]
[408541784,1773869448683,-500.0,0.00015174,2]
[408541785,1773869448692,-500.0,0.00015174,2]
[408541786,1773869448702,-500.0,0.00015174,2]
[408541787,1773869448899,-500.0,0.00015174,2]
[408541788,1773869448908,-250.0,0.00015174,2]
[408541789,1773869448917,-500.0,0.00015174,2]
[408541790,1773869448926,-500.0,0.00015174,2]
[408541791,1773869448936,-250.0,0.00015174,2]
[408541792,1773869448945,-500.0,0.00015174,2]
[408541793,1773869448955,-500.0,0.00015174,2]
[408541794,1773869448964,-301.07682067,0.00015174,2]
[408541795,1773869448973,-250.0,0.00015174,2]
[408541796,1773869448982,-250.0,0.00015174,2]
[408541797,1773869448993,-250.0,0.00015174,2]
[408541798,1773869449002,-500.0,0.00015174,2]
[408541799,1773869449011,-250.0,0.00015174,2]
[408541800,1773869449020,-174.61919141,0.00015174,2]
[408541801,1773869449029,-500.0,0.00015174,2]
[408541802,1773869449038,-250.0,0.00015174,2]
[408541803,1773869449047,-500.0,0.00015174,2]
[408541804,1773869449056,-250.0,0.00015174,2]
[408541805,1773869449065,-200.0,0.00015174,2]
[408541806,1773869449073,-250.0,0.00015174,2]
[408541807,1773869449083,-500.0,0.00015174,2]
[408541808,1773869449092,-250.0,0.00015174,2]
[408541809,1773869449101,-500.0,0.00015174,2]
[408541810,1773869449109,-250.0,0.00015174,2]
[408541811,1773869449118,-500.0,0.00015174,2]
[408541812,1773869449127,-250.0,0.00015174,2]
[408541813,1773869449136,-500.0,0.00015174,2]
[408541814,1773869449145,-250.0,0.00015174,2]
[408541815,1773869449155,-500.0,0.00015174,2]
[408541816,1773869449164,-250.0,0.00015174,2]
[408541817,1773869449173,-250.0,0.00015174,2]
[408541818,1773869449183,-250.0,0.00015174,2]
[408541819,1773869449191,-250.0,0.00015174,2]
[408541820,1773869449200,-250.0,0.00015174,2]
[408541821,1773869449209,-250.0,0.00015174,2]
[408541822,1773869449217,-250.0,0.00015174,2]
[408541823,1773869449227,-250.0,0.00015174,2]
[408541824,1773869449236,-250.0,0.00015174,2]
[408541825,1773869449245,-250.0,0.00015174,2]
[408541826,1773869449259,-299.41243554,0.00015174,2]
[408541827,1773869449268,-151.0,0.00015174,2]
[408541828,1773869449278,-250.0,0.00015174,2]
[408541829,1773869449287,-250.0,0.00015174,2]
[408541830,1773869449297,-250.0,0.00015174,2]
[408541831,1773869449306,-250.0,0.00015174,2]
[408541832,1773869449315,-250.0,0.00015174,2]
[408541833,1773869449324,-250.0,0.00015174,2]
[408541834,1773869449333,-250.0,0.00015174,2]
[408541835,1773869449342,-250.0,0.00015174,2]
[408541836,1773869449350,-250.0,0.00015174,2]
[408541837,1773869449359,-250.0,0.00015174,2]
[408541838,1773869449369,-250.0,0.00015174,2]
[408541839,1773869449378,-250.0,0.00015174,2]
[408541840,1773869449390,-250.0,0.00015174,2]
[408541841,1773869449399,-669.13395939,0.00015174,2]
[408541842,1773869449408,-151.0,0.00015174,2]
[408541843,1773869449417,-151.0,0.00015174,2]
[408541844,1773869449426,-151.0,0.00015174,2]
[408541845,1773869449435,-316.97510856,0.00015197,2]
[408541846,1773869449444,-9412.32168148,0.000152,2]
[408541847,1773869449453,-5000.0,0.000152,2]
[408541848,1773869449462,-500.0,0.00015229,2]
[408541849,1773869449472,-151.0,0.00015229,2]
[408541850,1773869449481,-284.57585893,0.00015248,2]
[408541851,1773869449490,-588.4746136,0.00015248,2]
[408541852,1773869449499,-1007.25459939,0.00015248,2]
[408541853,1773869449507,-587.0,0.00015281,2]
[408541854,1773869449517,-500.0,0.00015284,2]
[408541855,1773869449527,-151.0,0.00015284,2]
[408541856,1773869449536,-1517.64,0.000153,2]
[408541857,1773869449545,-655.99677165,0.000153,2]
[408541858,1773869449554,-200.0,0.00015319,2]
[408541859,1773869449563,-500.0,0.00015339,2]
[408541860,1773869449573,-151.0,0.00015339,2]
[408541861,1773869449582,-167.92,0.00015347,2]
[408541862,1773869449590,-167.92,0.00015347,2]
[408541863,1773869449600,-2351.0,0.00015365,2]
[408541864,1773869449612,-1000.0,0.00015373,2]
[408541865,1773869449621,-504.3957851,0.00015373,2]
[408541866,1773869449630,-1003.58471046,0.00015373,2]
[408541867,1773869449639,-500.0,0.00015394,2]
[408541868,1773869449648,-151.0,0.00015394,2]
[408541869,1773869449657,-511.45991941,0.000154,2]
[408541870,1773869449666,-375.28,0.000154,2]
[408541871,1773869449678,-2000.0,0.000154,2]
[408541872,1773869449688,-20414.96798754,0.00015403,2]
[408541873,1773869449698,-608.00046403,0.00015404,2]
[408541874,1773869449709,-433.0,0.00015433,2]
[408541875,1773869449720,-608.10228989,0.00015443,2]
[408541876,1773869449731,-1000.0,0.00015443,2]
[408541877,1773869449741,-1002.46636768,0.00015443,2]
[408541878,1773869449750,-1000.0,0.00015443,2]
[408541879,1773869449760,-500.88729628,0.00015448,2]
[408541880,1773869449770,-500.0,0.00015449,2]
[408541881,1773869449779,-151.0,0.00015449,2]
[408541882,1773869449788,-2300.0,0.00015452,2]
[408541883,1773869449797,-900.0,0.00015452,2]
[408541884,1773869449806,-507.4612387,0.00015455,2]
[408541885,1773869449815,-154.10725797,0.0001546,2]
[408541886,1773869449824,-1003.90142474,0.0001546,2]
[408541887,1773869449834,-1000.0,0.0001546,2]
[408541888,1773869449845,-555.73869891,0.0001546,2]
[408541889,1773869449855,-1000.0,0.0001546,2]
[408541890,1773869449866,-500.0,0.00015481,2]
[408541891,1773869449878,-700.0,0.000155,5]
[408541892,1773869449887,-500.0,0.00015504,2]
[408541893,1773869449898,-151.0,0.00015504,2]
[408541894,1773869449908,-3628.48,0.00015507,2]
[408541895,1773869449918,-2000.0,0.00015516,2]
[408541896,1773869449928,-2000.0,0.00015516,2]
[408541897,1773869449939,-2000.0,0.00015516,2]
[408541898,1773869449950,-152.52789469,0.00015516,2]
[408541899,1773869449960,-3022.0,0.00015517,2]
[408541900,1773869449968,-316.97510856,0.00015549,2]
[408541901,1773869449979,-500.0,0.00015559,2]
[408541902,1773869449991,-151.0,0.00015559,2]
[408541903,1773869450000,-1016.47556267,0.00015582,2]
[408541904,1773869450010,-1140.23071941,0.00015582,2]
[408541905,1773869450019,-1095.46012492,0.00015582,2]
[408541906,1773869450029,-1130.18189645,0.00015582,2]
[408541907,1773869450038,-1043.47867313,0.00015582,2]
[408541908,1773869450047,-1050.75278245,0.00015582,2]